bitfinex-derivatives/quotes_SOLF0:USTF0_20260121
["timestamp","ask_amount","ask_price","bid_price","bid_amount"]
[1769011462803,9.4640501,129.86,129.79,3.38395954]
[1769011462995,2.5273501,129.9,129.81,2.5273501]
[1769011463291,6.9347,129.9,129.82,3.38395954]
[1769011463494,6.9347,129.9,129.83,3.38395954]
[1769011464398,6.9354,129.88,129.83,3.38395954]
[1769011465298,2.53247181,129.91,129.83,3.38395954]
[1769011466903,6.9348,129.89,129.83,3.38395954]
[1769011467092,6.9348,129.89,129.82,9.47087181]
[1769011467093,2.53247181,129.93,129.85,3.38395954]
[1769011468099,6.9341,129.91,129.85,3.38395954]
[1769011470600,6.933,129.93,129.86,3.38395954]
[1769011471397,110.35257181,129.96,129.87,3.38395954]
[1769011471700,2.53247181,129.96,129.87,3.38395954]
[1769011471890,2.53247181,129.97,129.89,3.38395954]
[1769011472294,9.46327181,129.97,129.89,3.38395954]
[1769011472693,9.46327181,129.97,129.9,2.53247181]
[1769011472694,6.9308,129.97,129.9,2.53247181]
[1769011472894,6.9308,129.97,129.91,3.38395954]
[1769011473095,6.9298,129.99,129.91,3.38395954]
[1769011473295,9.46227181,129.99,129.91,3.38395954]
[1769011474090,9.46227181,129.99,129.91,10.31745954]
[1769011474296,2.53247181,129.97,129.91,3.38395954]
[1769011475106,2.53247181,129.97,129.89,3.38395954]
[1769011476902,2.53247181,129.95,129.87,3.38395954]
[1769011477803,6.9322,129.94,129.87,3.38395954]
[1769011478702,2.53247181,129.95,129.88,3.38395954]
[1769011479911,9.46417181,129.95,129.88,3.38395954]
[1769011481012,6.9317,129.95,129.88,3.38395954]
[1769011481706,107.8209,129.96,129.88,3.38395954]
[1769011481916,107.8254,129.95,129.85,3.38395954]
[1769011482115,107.8357,129.94,129.85,3.38395954]
[1769011482416,107.8506,129.92,129.83,3.38395954]
[1769011482604,114.0580637,129.93,129.83,3.38395954]
[1769011482813,6.9343,129.9,129.83,3.38395954]
[1769011483509,6.9337,129.91,129.84,6.9373]
[1769011483715,6.9337,129.91,129.84,10.32125954]
[1769011485617,6.9337,129.91,129.85,3.16454076]
[1769011485816,6.2126637,129.93,129.85,3.16454076]
[1769011486014,6.2126637,129.93,129.86,3.16454076]
[1769011486917,6.9333,129.92,129.86,3.16454076]
[1769011488919,6.9339,129.91,129.86,3.16454076]
[1769011489418,6.9343,129.9,129.84,3.16454076]
[1769011489812,114.0548637,129.93,129.84,3.16454076]
[1769011490012,114.0548637,129.93,129.82,3.16454076]
[1769011490013,107.8606,129.91,129.82,3.16454076]
[1769011490921,6.9353,129.88,129.82,3.16454076]
[1769011491615,6.9359,129.87,129.79,10.10434076]
[1769011491820,107.879,129.89,129.79,10.10434076]
[1769011492019,107.879,129.89,129.8,3.16454076]
[1769011492218,6.9357,129.88,129.81,3.16454076]
[1769011493521,6.9357,129.88,129.81,10.10344076]
[1769011494725,6.9357,129.88,129.81,3.16454076]
[1769011494925,6.936,129.87,129.81,3.16454076]
[1769011498323,6.9352,129.89,129.81,10.10334076]
[1769011498519,107.8767,129.89,129.81,3.16454076]
[1769011498730,107.8767,129.89,129.77,3.40210935]
[1769011498915,6.9358,129.88,129.8,10.34170935]
[1769011499929,6.9358,129.87,129.8,10.34170935]
[1769011500922,2.53403148,129.85,129.8,10.34170935]
[1769011504830,2.53403148,129.85,129.81,10.34100935]
[1769011505032,2.53403148,129.87,129.82,3.40210935]
[1769011505233,2.53403148,129.85,129.8,3.40210935]
[1769011506144,9.47093148,129.85,129.8,3.40210935]
[1769011506341,2.53403148,129.85,129.78,3.40210935]
[1769011506541,2.53403148,129.83,129.78,3.40210935]
[1769011507645,2.53403148,129.84,129.78,10.34270935]
[1769011507941,2.53403148,129.86,129.79,3.40210935]
[1769011508142,2.53403148,129.87,129.79,3.40210935]
[1769011508338,2.53403148,129.87,129.82,6.9383]
[1769011508737,6.9353,129.88,129.82,6.9383]
[1769011509047,9.46993148,129.87,129.81,3.40210935]
[1769011510346,9.46993148,129.87,129.81,10.34110935]
[1769011510548,6.9353,129.88,129.82,3.40210935]
[1769011510748,9.46933148,129.88,129.82,3.40210935]
[1769011511949,9.46933148,129.88,129.82,10.34040935]
[1769011512148,107.8606,129.91,129.79,3.40210935]
[1769011512149,2.53403148,129.86,129.79,3.40210935]
[1769011512350,2.53403148,129.84,129.76,3.40210935]
[1769011513947,2.53403148,129.84,129.78,6.9405]
[1769011514549,2.53403148,129.84,129.78,10.34260935]
[1769011514848,2.53403148,129.84,129.79,3.40210935]
[1769011516249,2.53403148,129.84,129.79,10.34200935]
[1769011517146,6.937,129.85,129.79,10.34200935]
[1769011517844,6.937,129.85,129.8,3.2695218]
[1769011518056,2.53403148,129.86,129.81,3.2695218]
[1769011518950,2.53403148,129.86,129.81,10.2085218]
[1769011519452,6.9363,129.87,129.81,10.2085218]
[1769011519655,2.53403148,129.86,129.81,10.2085218]
[1769011520447,2.53403148,129.84,129.77,3.2695218]
[1769011520647,2.53403148,129.82,129.77,3.2695218]
[1769011521956,2.53403148,129.82,129.77,10.2102218]
[1769011524155,6.938,129.83,129.77,10.2102218]
[1769011527161,6.938,129.83,129.77,3.2695218]
[1769011527555,107.9222,129.84,129.73,3.2695218]
[1769011527757,2.53493333,129.8,129.73,3.2695218]
[1769011528969,9.47463333,129.8,129.73,10.2127218]
[1769011529462,9.47463333,129.8,129.74,3.2695218]
[1769011529657,6.939,129.82,129.75,3.2695218]
[1769011530257,6.9393,129.81,129.75,3.2695218]
[1769011530461,9.47423333,129.81,129.75,3.2695218]
[1769011530671,2.53493333,129.81,129.72,3.2695218]
[1769011530857,6.9396,129.8,129.73,10.2128218]
[1769011531359,2.53493333,129.79,129.73,10.2128218]
[1769011531562,2.53493333,129.79,129.73,3.2695218]
[1769011532562,9.47513333,129.79,129.73,3.2695218]
[1769011532866,9.47513333,129.79,129.68,108.0433]
[1769011532867,9.47513333,129.79,129.71,3.2695218]
[1769011533270,9.47513333,129.79,129.72,3.2695218]
[1769011534272,9.47433333,129.81,129.73,3.2695218]
[1769011534655,2.53493333,129.81,129.71,2.53493333]
[1769011534858,2.53493333,129.76,129.7,3.2695218]
[1769011535261,2.53493333,129.78,129.7,3.2695218]
[1769011535472,7.0391225,129.82,129.71,3.2695218]
[1769011535669,2.53493333,129.79,129.71,3.2695218]
[1769011535862,2.53493333,129.79,129.71,10.2137218]
[1769011536067,7.0391225,129.83,129.72,3.2695218]
[1769011536265,2.53493333,129.82,129.74,3.2695218]
[1769011536464,2.53493333,129.8,129.74,3.2695218]
[1769011537064,9.47453333,129.8,129.74,3.2695218]
[1769011537263,9.47453333,129.8,129.72,10.2131218]
[1769011537459,2.53493333,129.78,129.72,3.2695218]
[1769011540472,6.9396,129.8,129.72,3.2695218]
[1769011540778,9.47453333,129.8,129.72,3.2695218]
[1769011541273,2.53493333,129.78,129.72,3.2695218]
[1769011542867,2.53493333,129.78,129.7,3.2695218]
[1769011543474,2.53493333,129.78,129.71,3.2695218]
[1769011545073,9.47573333,129.78,129.71,3.2695218]
[1769011545874,2.53493333,129.78,129.72,3.40916628]
[1769011546783,2.53493333,129.78,129.72,10.35296628]
[1769011546981,115.00954047,129.83,129.72,10.35296628]
[1769011546982,2.53493333,129.8,129.72,3.40916628]
[1769011547485,9.47463333,129.8,129.73,6.9433]
[1769011547981,9.47463333,129.8,129.73,10.35246628]
[1769011548479,2.53493333,129.78,129.71,10.35316628]
[1769011549078,2.53493333,129.78,129.69,3.40916628]
[1769011549280,2.53493333,129.76,129.69,3.40916628]
[1769011550580,9.47683333,129.76,129.69,10.35446628]
[1769011552085,2.53493333,129.74,129.66,3.40916628]
[1769011552487,2.53493333,129.75,129.68,10.35506628]
[1769011552886,9.47723333,129.75,129.68,3.40916628]
[1769011553690,9.47723333,129.75,129.68,10.35496628]
[1769011555189,2.53493333,129.73,129.66,6.9467]
[1769011555390,2.53493333,129.71,129.65,3.40916628]
[1769011555590,2.53493333,129.71,129.63,3.40916628]
[1769011556088,2.53493333,129.69,129.63,3.40916628]
[1769011556391,2.53493333,129.69,129.64,10.35716628]
[1769011556885,2.53493333,129.69,129.62,3.40916628]
[1769011557290,2.53493333,129.69,129.63,6.9486]
[1769011557694,2.53493333,129.69,129.63,3.40916628]
[1769011558191,2.53493333,129.69,129.62,6.9489]
[1769011558496,2.53493333,129.67,129.62,3.19722508]
[1769011560089,2.53493333,129.67,129.62,10.14642508]
[1769011560294,108.0109,129.73,129.62,3.19722508]
[1769011560485,2.53493333,129.7,129.63,3.19722508]
[1769011560681,2.53493333,129.74,129.66,3.19722508]
[1769011560881,107.9618,129.79,129.67,3.19722508]
[1769011561084,2.53493333,129.79,129.72,3.19722508]
[1769011561390,2.53493333,129.81,129.72,3.19722508]
[1769011562196,2.53493333,129.83,129.73,3.19722508]
[1769011562889,107.9083,129.85,129.73,3.19722508]
[1769011563193,114.13080128,129.86,129.75,3.19722508]
[1769011563491,7.08404047,129.88,129.77,3.19722508]
[1769011563694,121.18944175,129.89,129.77,3.19722508]
[1769011563993,114.10540128,129.89,129.77,3.19722508]
[1769011564898,6.9362,129.87,129.78,10.13772508]
[1769011565099,6.9362,129.87,129.79,3.19722508]
[1769011565794,6.9362,129.87,129.76,107.9804]
[1769011565795,107.9002,129.86,129.76,3.19722508]
[1769011565995,107.9002,129.86,129.7,108.0281]
[1769011565996,107.9419,129.81,129.69,3.19722508]
[1769011566293,6.9409,129.78,129.7,3.19722508]
[1769011566798,107.9419,129.81,129.7,3.19722508]
[1769011567001,6.94,129.8,129.7,10.14202508]
[1769011567196,6.94,129.8,129.71,3.19722508]
[1769011567903,6.94,129.8,129.71,10.14152508]
[1769011568106,107.9522,129.8,129.71,3.19722508]
[1769011568606,6.941,129.78,129.71,3.19722508]
[1769011569702,6.94,129.8,129.71,10.14142508]
[1769011570102,6.94,129.8,129.71,3.19722508]
[1769011570304,6.94,129.8,129.69,108.0363]
[1769011570305,6.94,129.8,129.73,3.19722508]
[1769011570508,6.9402,129.79,129.73,3.19722508]
[1769011571004,6.9395,129.81,129.73,3.19722508]
[1769011571502,6.942,129.76,129.68,6.9456]
[1769011571807,107.96,129.79,129.68,3.19722508]
[1769011572294,6.9413,129.77,129.69,6.9454]
[1769011572698,6.9419,129.76,129.68,3.19722508]
[1769011573004,114.20100128,129.77,129.65,3.19722508]
[1769011574006,6.9429,129.74,129.66,10.14412508]
[1769011575404,6.9421,129.76,129.67,10.14362508]
[1769011575903,6.9424,129.75,129.67,10.14362508]
[1769011576397,114.20100128,129.77,129.67,3.19722508]
[1769011576609,6.9431,129.74,129.67,3.19722508]
[1769011577809,114.20100128,129.77,129.67,3.19722508]
[1769011577810,6.9421,129.76,129.67,10.14372508]
[1769011578313,6.9411,129.78,129.7,10.33049959]
[1769011578811,14.02324047,129.81,129.73,10.32879959]
[1769011579112,6.9392,129.81,129.74,3.38559959]
[1769011581612,6.9392,129.81,129.74,10.32829959]
[1769011582710,114.99634047,129.85,129.75,10.32779959]
[1769011582915,114.99634047,129.85,129.75,3.38559959]
[1769011583108,6.9386,129.82,129.75,3.38559959]
[1769011584010,115.01014047,129.83,129.73,6.943]
[1769011584208,115.00254047,129.84,129.73,3.38559959]
[1769011584714,107.9341,129.82,129.73,3.38559959]
[1769011585109,114.15210128,129.83,129.73,3.38559959]
[1769011585914,6.9395,129.81,129.73,10.32879959]
[1769011586113,114.15210128,129.83,129.73,10.32879959]
[1769011586408,121.23614175,129.83,129.73,10.32879959]
[1769011586615,114.15210128,129.83,129.73,10.32879959]
[1769011586812,6.9402,129.79,129.73,3.38559959]
[1769011587809,114.16280692,129.82,129.73,3.38559959]
[1769011587810,6.9394,129.81,129.73,3.38559959]
[1769011588402,406.50254047,129.84,129.7,108.029]
[1769011588403,6.9385,129.83,129.74,3.38559959]
[1769011588810,7.08404047,129.86,129.77,10.32669959]
[1769011589016,6.9373,129.85,129.78,3.38559959]
[1769011589309,7.08404047,129.86,129.78,3.38559959]
[1769011589714,7.08404047,129.86,129.8,0.05074221]
[1769011591214,7.08404047,129.87,129.8,0.05074221]
[1769011591515,6.937,129.85,129.8,0.05074221]
[1769011591717,6.937,129.85,129.78,3.38559959]
[1769011591919,114.97864047,129.87,129.78,3.38559959]
[1769011592113,6.9376,129.84,129.78,3.38559959]
[1769011592517,6.9391,129.81,129.71,3.38559959]
[1769011593724,6.9384,129.83,129.74,10.32829959]
[1769011593916,107.917,129.84,129.74,10.32829959]
[1769011594319,7.08404047,129.86,129.75,3.38559959]
[1769011594614,114.97864047,129.87,129.75,3.38559959]
[1769011595818,114.97864047,129.87,129.79,3.38559959]
[1769011595819,6.937,129.85,129.79,3.38559959]
[1769011596817,6.9362,129.87,129.79,10.32559959]
[1769011597125,7.08404047,129.9,129.8,3.38559959]
[1769011597324,114.09280692,129.91,129.8,3.38559959]
[1769011597830,107.9003,129.86,129.75,3.38559959]
[1769011598026,107.9179,129.84,129.75,3.38559959]
[1769011598219,114.13810692,129.85,129.75,3.38559959]
[1769011598220,114.13810692,129.85,129.75,10.32779959]
[1769011599528,6.9386,129.82,129.75,10.32779959]
[1769011601126,6.22890692,129.85,129.75,3.38559959]
[1769011601920,13.16630692,129.85,129.77,6.9411]
[1769011602432,6.9374,129.85,129.77,10.32669959]
[1769011603323,6.9375,129.84,129.77,10.32669959]
[1769011604428,6.9369,129.86,129.78,3.38559959]
[1769011606333,6.937,129.85,129.78,3.38559959]
[1769011608038,6.9375,129.84,129.78,3.38559959]
[1769011610932,6.9368,129.86,129.78,10.32629959]
[1769011611132,114.11610692,129.88,129.78,10.32629959]
[1769011612934,6.9369,129.85,129.78,10.32629959]
[1769011615539,6.9375,129.84,129.78,10.32629959]
[1769011615744,121.20014739,129.88,129.78,10.32629959]
[1769011615948,114.11610692,129.88,129.78,10.32629959]
[1769011616446,114.11610692,129.88,129.79,6.94]
[1769011616447,6.937,129.85,129.79,6.94]
[1769011616649,6.22890692,129.88,129.79,10.37324527]
[1769011617948,6.9364,129.86,129.79,10.37324527]
[1769011618741,6.937,129.85,129.79,10.37324527]
[1769011620947,107.8647,129.91,129.81,3.31651075]
[1769011621649,6.9358,129.88,129.82,3.31651075]
[1769011622053,6.936,129.87,129.82,3.31651075]
[1769011624854,6.9353,129.88,129.82,3.31651075]
[1769011625555,6.9347,129.9,129.83,3.31651075]
[1769011625755,121.7119,129.93,129.83,3.31651075]
[1769011625756,7.08404047,129.93,129.83,3.31651075]
[1769011625948,107.8397,129.94,129.83,3.31651075]
[1769011625949,114.92374047,129.94,129.83,3.31651075]
[1769011626954,6.9337,129.91,129.85,3.31651075]
[1769011627854,6.9337,129.91,129.81,107.9379]
[1769011627855,7.08404047,129.95,129.86,3.31651075]
[1769011628051,6.22890692,129.97,129.86,3.31651075]
[1769011628452,6.9317,129.95,129.88,10.25181075]
[1769011629849,6.22890692,129.97,129.88,3.31651075]
[1769011630052,107.8186,129.96,129.83,3.31651075]
[1769011630255,114.90264047,129.96,129.83,3.31651075]
[1769011630649,6.9327,129.93,129.85,3.31651075]
[1769011630843,107.8253,129.95,129.85,3.31651075]
[1769011631050,107.8346,129.94,129.85,3.31651075]
[1769011631342,107.8458,129.93,129.83,3.31651075]
[1769011631545,107.8513,129.92,129.83,3.31651075]
[1769011631754,107.8513,129.92,129.82,6.9381]
[1769011631959,6.9348,129.89,129.81,3.31651075]
[1769011633053,6.9348,129.89,129.82,10.25491075]
[1769011636354,6.22890692,129.91,129.82,3.31651075]
[1769011637053,6.9336,129.92,129.85,3.16730272]
[1769011637254,114.94301757,129.96,129.85,3.16730272]
[1769011638858,6.9326,129.94,129.86,6.9363]
[1769011639155,114.94301757,129.96,129.85,3.16730272]
[1769011639356,6.22890692,129.94,129.84,6.9369]
[1769011639555,13.35332449,129.94,129.84,6.9369]
[1769011640156,107.8419,129.93,129.82,6.9382]
[1769011640356,6.22890692,129.91,129.82,6.9382]
[1769011640658,13.35332449,129.94,129.83,3.16730272]
[1769011640861,6.9341,129.91,129.83,3.16730272]
[1769011642659,6.9343,129.9,129.83,3.16730272]
[1769011644968,6.9348,129.89,129.83,3.16730272]
[1769011645164,114.08800692,129.91,129.8,3.16730272]
[1769011645469,121.21242449,129.91,129.8,3.16730272]
[1769011645668,6.9354,129.88,129.8,3.16730272]
[1769011647066,6.9354,129.88,129.81,10.10630272]
[1769011647670,6.9359,129.87,129.81,3.16730272]
[1769011648262,6.9364,129.86,129.81,3.16730272]
[1769011649467,6.9359,129.87,129.81,3.16730272]
[1769011650972,6.9353,129.88,129.82,3.16730272]
[1769011651265,7.12441757,129.95,129.83,3.16730272]
[1769011651567,6.9328,129.93,129.87,10.10310272]
[1769011651870,6.9328,129.93,129.87,3.16730272]
[1769011652756,6.9332,129.92,129.87,3.16730272]
[1769011652961,107.8356,129.94,129.83,3.16730272]
[1769011653161,107.8431,129.93,129.83,3.16730272]
[1769011653368,6.9359,129.87,129.8,6.9392]
[1769011653572,6.9359,129.87,129.81,3.16730272]
[1769011654362,6.9349,129.89,129.82,3.16730272]
[1769011655973,6.9349,129.89,129.83,3.16730272]
[1769011656169,6.9342,129.91,129.83,3.16730272]
[1769011656374,7.12441757,129.95,129.83,3.16730272]
[1769011656764,114.94391757,129.96,129.83,3.16730272]
[1769011657376,6.9332,129.93,129.86,10.10370272]
[1769011657569,7.12441757,129.96,129.86,10.10370272]
[1769011658975,7.12441757,129.96,129.87,3.16730272]
[1769011660479,6.9322,129.94,129.87,3.16730272]
[1769011660877,6.9332,129.92,129.85,3.16730272]
[1769011661877,107.8441,129.93,129.82,3.16730272]
[1769011662077,114.96851757,129.93,129.82,3.16730272]
[1769011662267,7.12441757,129.92,129.82,3.16730272]
[1769011662863,6.9348,129.89,129.82,10.10530272]
[1769011664679,6.9343,129.9,129.83,10.10510272]
[1769011664983,6.9345,129.9,129.84,3.16730272]
[1769011665474,107.8598,129.91,129.82,3.16730272]
[1769011665669,121.20488549,129.91,129.82,3.16730272]
[1769011666465,7.12441757,129.9,129.82,3.16730272]
[1769011666871,6.9356,129.88,129.82,3.16730272]
[1769011669281,6.9359,129.87,129.82,3.16730272]
[1769011671275,107.8869,129.88,129.79,3.30637855]
[1769011671486,107.8945,129.87,129.79,3.30637855]
[1769011671679,107.9007,129.86,129.77,3.30637855]
[1769011672273,107.9083,129.85,129.77,3.30637855]
[1769011673187,107.9173,129.84,129.75,3.30637855]
[1769011673480,107.9083,129.85,129.76,3.30637855]
[1769011673784,107.9173,129.84,129.76,3.30637855]
[1769011675084,6.9389,129.82,129.76,3.30637855]
[1769011676382,107.9083,129.85,129.76,3.30637855]
[1769011677187,6.938,129.83,129.76,3.30637855]
[1769011678984,115.02841757,129.86,129.76,10.24807855]
[1769011678985,6.9374,129.85,129.76,10.24807855]
[1769011680383,6.9375,129.84,129.76,10.24807855]
[1769011681188,6.22066792,129.84,129.74,10.35753373]
[1769011681489,107.9283,129.83,129.7,3.41503373]
[1769011681701,6.9402,129.79,129.71,3.41503373]
[1769011681988,6.22066792,129.81,129.71,3.41503373]
[1769011682184,6.9407,129.78,129.7,6.9448]
[1769011682388,13.16136792,129.78,129.7,6.9448]
[1769011682585,6.22066792,129.78,129.68,3.41503373]
[1769011682783,6.9419,129.76,129.68,10.36083373]
[1769011683188,6.9419,129.76,129.68,3.41503373]
[1769011683490,0.05260375,129.74,129.68,3.41503373]
[1769011686690,0.05260375,129.74,129.66,3.41503373]
[1769011686885,6.99560375,129.74,129.67,3.41503373]
[1769011687390,6.943,129.74,129.67,3.41503373]
[1769011687579,0.0514488,129.72,129.65,3.41503373]
[1769011688092,108.0005,129.74,129.65,3.41503373]
[1769011688580,0.05697507,129.7,129.65,3.41503373]
[1769011689890,107.9781,129.77,129.65,3.41503373]
[1769011690083,107.9833,129.76,129.65,3.41503373]
[1769011690785,6.943,129.74,129.67,3.41503373]
[1769011690983,107.9538,129.8,129.67,3.41503373]
[1769011691187,107.9696,129.78,129.67,3.41503373]
[1769011691791,107.9696,129.78,129.68,3.41503373]
[1769011691792,6.9424,129.75,129.68,3.41503373]
[1769011691992,107.9786,129.77,129.68,3.41503373]
[1769011692191,107.9843,129.76,129.68,3.41503373]
[1769011692896,6.9429,129.74,129.68,3.41503373]
[1769011694392,108.86470164,129.74,129.64,6.9479]
[1769011694593,108.86470164,129.74,129.61,115.66789098]
[1769011694594,0.86240164,129.69,129.61,1.34202306]
[1769011694896,6.9477,129.65,129.59,9.55176903]
[1769011695089,108.91630164,129.68,129.59,9.55176903]
[1769011695682,108.91630164,129.68,129.62,0.04948582]
[1769011696287,7.80880164,129.68,129.62,0.04948582]
[1769011702302,6.9466,129.67,129.62,0.04948582]
[1769011702501,7.8123056,129.67,129.62,0.04948582]
[1769011706298,6.9471,129.66,129.62,0.04948582]
[1769011706600,0.8657056,129.67,129.62,0.04948582]
[1769011707104,3.40702681,129.67,129.62,0.04948582]
[1769011707499,6.947,129.67,129.62,0.04948582]
[1769011707704,108.0371,129.7,129.62,0.04948582]
[1769011707705,2.54132121,129.7,129.62,3.38631127]
[1769011708293,2.54132121,129.7,129.62,3.33682545]
[1769011708908,6.946,129.69,129.63,3.33682545]
[1769011710207,2.5402456,129.72,129.64,3.33682545]
[1769011710708,3.4059512,129.72,129.64,3.33682545]
[1769011710907,0.8657056,129.72,129.64,3.33682545]
[1769011711711,0.8657056,129.74,129.66,3.33682545]
[1769011712308,6.9438,129.73,129.67,3.33682545]
[1769011712701,0.8657056,129.74,129.67,3.33682545]
[1769011713806,7.8091056,129.73,129.67,3.33682545]
[1769011714108,0.8657056,129.73,129.63,3.33682545]
[1769011714306,6.9444,129.71,129.63,3.33682545]
[1769011714697,6.9444,129.71,129.65,3.33682545]
[1769011714898,7.8095056,129.73,129.65,3.33682545]
[1769011715312,6.9438,129.73,129.67,3.33682545]
[1769011716118,0.8657056,129.74,129.67,10.28322545]
[1769011717113,7.8086056,129.74,129.67,3.33682545]
[1769011718216,7.8086056,129.74,129.67,10.28332545]
[1769011718815,0.8657056,129.72,129.64,3.33682545]
[1769011719409,0.8657056,129.72,129.66,6.9468]
[1769011719711,0.8657056,129.72,129.64,3.33682545]
[1769011719915,0.8657056,129.72,129.64,10.28442545]
[1769011720418,0.8657056,129.71,129.64,10.28442545]
[1769011722718,7.8101056,129.71,129.64,10.28442545]
[1769011726925,6.9451,129.7,129.64,3.33682545]
[1769011727919,7.8101056,129.71,129.64,3.33682545]
[1769011728418,7.80849826,129.7,129.64,3.33682545]
[1769011729322,7.80849826,129.7,129.64,10.28482545]
[1769011731723,2.53976951,129.73,129.66,3.23361344]
[1769011732620,3.40326777,129.73,129.66,3.23361344]
[1769011733010,6.9439,129.72,129.66,10.18061344]
[1769011733417,6.9439,129.72,129.66,3.23361344]
[1769011735624,6.9447,129.71,129.66,3.23361344]
[1769011738322,6.9449,129.7,129.66,3.23361344]
[1769011741534,7.81025435,129.69,129.62,3.26443757]
[1769011741824,108.0152,129.73,129.62,3.26443757]
[1769011741825,3.40442386,129.68,129.62,3.26443757]
[1769011742032,0.86465435,129.67,129.6,3.26443757]
[1769011742221,3.40442386,129.66,129.6,3.26443757]
[1769011743025,0.86465435,129.64,129.59,9.55176903]
[1769011743429,3.40442386,129.64,129.59,9.55176903]
[1769011744527,7.81355435,129.63,129.59,9.55176903]
[1769011749244,6.9493,129.62,129.59,9.55176903]
[1769011749747,7.81445435,129.61,129.59,6.903e-05]
[1769011749943,0.86465435,129.6,129.53,3.26443757]
[1769011750138,0.86465435,129.58,129.5,3.26443757]
[1769011751749,0.86465435,129.57,129.5,3.26443757]
[1769011752253,6.9531,129.55,129.5,3.26443757]
[1769011754145,0.86465435,129.56,129.5,3.26443757]
[1769011754351,0.86465435,129.57,129.5,3.26443757]
[1769011755245,0.86465435,129.62,129.5,3.26443757]
[1769011755441,108.1084,129.61,129.53,3.3989745]
[1769011755643,0.86635453,129.6,129.53,3.3989745]
[1769011756654,0.86635453,129.55,129.48,3.3989745]
[1769011757052,109.00245453,129.58,129.48,3.3989745]
[1769011757653,6.9528,129.56,129.49,3.3989745]
[1769011757857,115.22108904,129.61,129.49,3.3989745]
[1769011758055,0.86635453,129.57,129.51,3.3989745]
[1769011758256,0.86635453,129.57,129.46,108.2303]
[1769011758257,0.86635453,129.57,129.46,3.3989745]
[1769011759154,0.86635453,129.56,129.48,3.3989745]
[1769011759949,6.9537,129.54,129.48,3.3989745]
[1769011761051,109.01035453,129.57,129.48,3.3989745]
[1769011761253,0.86635453,129.55,129.48,3.3989745]
[1769011761757,6.9538,129.54,129.48,3.3989745]
[1769011763362,6.9541,129.53,129.48,3.3989745]
[1769011764757,7.82045453,129.53,129.45,10.3571745]
[1769011764961,10.36737337,129.53,129.45,10.3571745]
[1769011765161,10.36737337,129.53,129.46,3.3989745]
[1769011766163,10.36737337,129.53,129.46,10.3566745]
[1769011766656,9.50101884,129.53,129.47,3.3989745]
[1769011770265,2.54691884,129.53,129.47,10.3561745]
[1769011770563,2.54691884,129.55,129.48,3.3989745]
[1769011770867,3.41154087,129.57,129.49,3.3989745]
[1769011771371,6.9525,129.56,129.49,10.3551745]
[1769011772066,6.9525,129.56,129.5,3.3989745]
[1769011775277,6.953,129.55,129.5,3.3989745]
[1769011775576,3.41154087,129.57,129.5,3.3989745]
[1769011776072,6.9531,129.55,129.5,3.3989745]
[1769011777474,6.9537,129.54,129.48,10.3556745]
[1769011777780,0.86635453,129.56,129.49,3.3989745]
[1769011777781,3.41154087,129.56,129.49,3.3989745]
[1769011778075,0.86635453,129.56,129.5,3.3989745]
[1769011778462,2.54518634,129.53,129.46,3.3989745]
[1769011778976,6.9547,129.52,129.46,3.3989745]
[1769011780276,7.82025453,129.54,129.46,10.3566745]
[1769011780478,10.36544087,129.54,129.47,3.3989745]
[1769011780678,9.49908634,129.54,129.47,3.3989745]
[1769011780972,6.9539,129.54,129.47,3.3989745]
[1769011781881,6.9539,129.54,129.47,10.3561745]
[1769011782964,6.9542,129.53,129.47,3.3989745]
[1769011785371,2.54518634,129.54,129.47,3.3989745]
[1769011786575,2.54518634,129.54,129.47,10.3561745]
[1769011786873,7.81935453,129.55,129.48,3.40762937]
[1769011787077,129.14501757,129.6,129.48,3.40762937]
[1769011787078,2.54518634,129.56,129.48,3.40762937]
[1769011787476,10.3677021,129.56,129.49,6.9562]
[1769011787676,10.3677021,129.56,129.49,10.36382937]
[1769011788282,0.87001576,129.53,129.47,10.36472937]
[1769011789182,0.87001576,129.53,129.47,3.40762937]
[1769011789375,2.54518634,129.54,129.47,3.40762937]
[1769011789573,0.87001576,129.55,129.47,3.40762937]
[1769011790884,0.87001576,129.55,129.48,10.36432937]
[1769011791084,9.49798634,129.56,129.48,3.40762937]
[1769011791582,0.87001576,129.55,129.49,6.9562]
[1769011792576,2.54518634,129.54,129.49,6.9562]
[1769011794183,6.953,129.55,129.49,10.36382937]
[1769011794589,6.953,129.55,129.49,3.40762937]
[1769011795484,7.82301576,129.55,129.49,3.40762937]
[1769011796780,6.953,129.55,129.5,3.40762937]
[1769011800384,0.87091225,129.58,129.5,3.40762937]
[1769011800586,7.99532982,129.6,129.51,3.27275305]
[1769011800790,10.36669859,129.6,129.53,10.22665305]
[1769011800987,10.54051616,129.62,129.54,3.27275305]
[1769011801581,10.54051616,129.64,129.55,3.27275305]